bitfinex-derivatives/quotes_BTCF0:USTF0_20250121
["timestamp","ask_amount","ask_price","bid_price","bid_amount"]
[1737438725966,0.21255871,101420.0,101410.0,1.50673624]
[1737438726464,0.17307171,101420.0,101410.0,1.51738223]
[1737438727376,0.17307171,101420.0,101410.0,1.62957561]
[1737438727868,0.1422156,101420.0,101410.0,1.51738223]
[1737438728369,0.258284,101430.0,101410.0,1.51738223]
[1737438729065,8.589e-05,101420.0,101410.0,1.51738223]
[1737438730168,8.589e-05,101420.0,101410.0,1.87818223]
[1737438730861,8.589e-05,101420.0,101410.0,1.86275241]
[1737438731459,8.589e-05,101420.0,101410.0,1.82326141]
[1737438731655,0.62824631,101420.0,101410.0,0.04320096]
[1737438731860,0.51605293,101420.0,101400.0,0.500294]
[1737438732062,0.510591,101410.0,101400.0,0.1]
[1737438732669,0.510591,101410.0,101400.0,0.11543132]
[1737438733269,0.62278438,101410.0,101400.0,0.11543132]
[1737438733767,0.510591,101410.0,101400.0,0.11543132]
[1737438733971,0.039491,101410.0,101400.0,0.36573416]
[1737438734273,0.039491,101410.0,101400.0,0.65754826]
[1737438734469,0.51605293,101420.0,101410.0,0.039491]
[1737438734864,0.15525293,101420.0,101410.0,0.152391]
[1737438735163,0.03957289,101420.0,101410.0,0.25100546]
[1737438735464,0.039491,101410.0,101400.0,0.139494]
[1737438735671,0.11429628,101410.0,101400.0,0.139494]
[1737438735971,0.11429628,101410.0,101400.0,0.06446075]
[1737438736170,0.039494,101400.0,101390.0,0.05032224]
[1737438736468,0.23239928,101400.0,101390.0,0.08488929]
[1737438736657,0.23239928,101400.0,101390.0,0.09353107]
[1737438736863,0.268094,101400.0,101390.0,0.09353107]
[1737438737071,0.268094,101400.0,101390.0,0.19215526]
[1737438737263,0.039494,101400.0,101390.0,0.26696054]
[1737438737463,0.039494,101400.0,101390.0,0.19215526]
[1737438737770,0.039494,101400.0,101390.0,1.50215526]
[1737438738270,0.268691,101410.0,101390.0,1.57696054]
[1737438738467,0.1181,101410.0,101400.0,0.11430028]
[1737438738674,0.30219026,101410.0,101400.0,0.039495]
[1737438738968,0.33750454,101410.0,101390.0,1.36032024]
[1737438739273,0.039495,101400.0,101390.0,0.18350321]
[1737438739463,0.37699654,101410.0,101390.0,0.54430321]
[1737438739664,0.37699654,101410.0,101390.0,0.58750821]
[1737438739870,0.039495,101400.0,101390.0,0.22670821]
[1737438740169,0.039495,101400.0,101390.0,0.58750821]
[1737438741265,0.66299026,101410.0,101390.0,0.66231349]
[1737438741461,0.37699554,101410.0,101390.0,0.58750821]
[1737438741768,0.039494,101400.0,101390.0,0.58750821]
[1737438742167,0.24206411,101400.0,101390.0,0.58750821]
[1737438742768,0.20257011,101400.0,101390.0,0.66231349]
[1737438743768,0.20257011,101400.0,101390.0,0.58750821]
[1737438744279,0.31686839,101400.0,101390.0,0.15264856]
[1737438744481,0.24206311,101400.0,101390.0,0.10944356]
[1737438745467,0.31686839,101400.0,101390.0,0.10944356]
[1737438745776,0.24206311,101400.0,101390.0,0.10944356]
[1737438746371,0.18409226,101400.0,101390.0,0.14894056]
[1737438746870,0.25889754,101400.0,101390.0,0.08488867]
[1737438747072,0.37629754,101400.0,101390.0,0.08488867]
[1737438747372,0.14459926,101400.0,101390.0,0.58455071]
[1737438747882,0.11118589,101420.0,101410.0,0.03949]
[1737438747883,8.589e-05,101420.0,101410.0,0.03949]
[1737438748186,8.589e-05,101420.0,101400.0,0.43560528]
[1737438748484,8.589e-05,101420.0,101410.0,0.24821419]
[1737438748978,8.589e-05,101420.0,101410.0,0.2481996]
[1737438749180,8.589e-05,101420.0,101410.0,1.8889996]
[1737438749374,0.07489117,101420.0,101410.0,1.56275697]
[1737438749679,8.589e-05,101420.0,101410.0,1.92355697]
[1737438749889,8.589e-05,101420.0,101410.0,1.8889996]
[1737438750382,8.589e-05,101420.0,101410.0,1.92355785]
[1737438750582,8.589e-05,101420.0,101410.0,1.5281996]
[1737438750783,8.589e-05,101420.0,101410.0,1.92355791]
[1737438750974,8.589e-05,101420.0,101410.0,1.99836319]
[1737438751170,8.589e-05,101420.0,101410.0,1.99836027]
[1737438751370,0.00147955,101440.0,101430.0,0.039482]
[1737438751573,0.04095755,101440.0,101430.0,0.039482]
[1737438751781,0.11576283,101440.0,101430.0,0.039482]
[1737438751984,0.11576283,101440.0,101430.0,1.3785853]
[1737438752275,0.11576283,101440.0,101420.0,0.039485]
[1737438752683,0.11576283,101440.0,101420.0,0.1380703]
[1737438752984,0.11576283,101440.0,101420.0,0.21287558]
[1737438753174,0.11576283,101440.0,101420.0,0.1380703]
[1737438753375,0.04095755,101440.0,101430.0,0.039482]
[1737438754183,0.00147955,101440.0,101430.0,0.1380673]
[1737438754778,0.07628483,101440.0,101420.0,0.400285]
[1737438755082,0.039482,101430.0,101420.0,0.4988703]
[1737438755284,0.039482,101430.0,101420.0,0.53342702]
[1737438755484,0.039482,101430.0,101420.0,0.6082323]
[1737438756487,0.21332816,101430.0,101420.0,0.6082323]
[1737438756887,0.17384616,101430.0,101420.0,0.6082323]
[1737438757277,0.17384616,101430.0,101420.0,0.57367558]
[1737438757677,0.21332816,101430.0,101420.0,0.4988703]
[1737438758484,0.17384616,101430.0,101420.0,0.57367558]
[1737438758986,0.17384616,101430.0,101420.0,0.60822956]
[1737438759378,0.17384616,101430.0,101420.0,0.6082289]
[1737438759579,0.17384616,101430.0,101420.0,0.57367558]
[1737438759887,0.17384616,101430.0,101420.0,0.4988703]
[1737438760083,0.20274768,101430.0,101420.0,0.47509028]
[1737438760282,0.20274768,101430.0,101420.0,0.60823959]
[1737438760778,0.24222968,101430.0,101420.0,0.53343431]
[1737438760975,0.24222968,101430.0,101420.0,0.53343541]
[1737438761178,0.24222968,101430.0,101420.0,0.5736853]
[1737438761984,0.20274768,101430.0,101420.0,0.60824052]
[1737438762384,0.20274768,101430.0,101420.0,1.88824052]
[1737438762777,0.20274768,101430.0,101420.0,1.8536853]
[1737438763993,0.24222968,101430.0,101420.0,1.77888002]
[1737438764186,0.24222968,101430.0,101420.0,1.8536853]
[1737438764387,0.24222968,101430.0,101420.0,0.5736853]
[1737438764588,0.67357914,101430.0,101410.0,0.4106486]
[1737438764794,0.2237,101420.0,101410.0,0.48545388]
[1737438764993,0.2237,101420.0,101410.0,1.78924362]
[1737438765294,0.2237,101420.0,101410.0,1.8640489]
[1737438765496,0.2237,101420.0,101410.0,1.78924362]
[1737438766690,0.29850528,101420.0,101400.0,0.45302101]
[1737438766888,0.03949,101410.0,101400.0,0.48758065]
[1737438767094,0.03949,101410.0,101400.0,0.58618539]
[1737438767485,0.03949,101410.0,101400.0,0.62643103]
[1737438767687,0.03949,101410.0,101400.0,0.58618791]
[1737438767889,0.03949,101410.0,101400.0,0.51213275]
[1737438768090,0.03949,101410.0,101390.0,0.64361841]
[1737438768290,0.40029,101410.0,101390.0,1.04969365]
[1737438768595,0.40029,101410.0,101390.0,1.19151441]
[1737438768983,0.40029,101410.0,101390.0,1.15694946]
[1737438769188,0.40029,101410.0,101390.0,2.43694946]
[1737438769391,0.40029,101410.0,101390.0,2.07614946]
[1737438769392,0.039493,101400.0,101390.0,2.07614946]
[1737438769792,0.039493,101400.0,101390.0,2.43694946]
[1737438770495,0.039493,101400.0,101390.0,2.36214418]
[1737438771398,0.039493,101400.0,101390.0,1.96184818]
[1737438771598,0.039493,101400.0,101390.0,2.27944188]
[1737438772195,0.12638486,101400.0,101390.0,1.86591387]
[1737438772403,0.12638486,101400.0,101390.0,1.50511387]
[1737438772590,0.12638486,101400.0,101390.0,0.51342133]
[1737438772787,0.23908486,101400.0,101390.0,0.15262133]
[1737438772993,0.23908486,101400.0,101390.0,0.51342133]
[1737438773300,0.12638486,101400.0,101390.0,1.86822661]
[1737438773493,0.12638486,101400.0,101390.0,1.94021915]
[1737438775294,0.24224068,101400.0,101390.0,1.94021915]
[1737438776190,0.24224068,101400.0,101390.0,1.86541387]
[1737438776392,0.24224068,101400.0,101390.0,1.94021915]
[1737438777498,0.20274768,101400.0,101390.0,1.97971615]
[1737438780707,0.20274768,101400.0,101390.0,2.02291923]
[1737438781305,0.20274768,101400.0,101390.0,0.81772451]
[1737438781503,0.17631653,101400.0,101390.0,0.81772451]
[1737438781807,0.14476678,101410.0,101400.0,0.039494]
[1737438782001,0.14476678,101410.0,101400.0,0.47509928]
[1737438782203,0.14476678,101410.0,101400.0,0.51830236]
[1737438782511,0.17384616,101420.0,101400.0,0.69173183]
[1737438782800,0.14469748,101420.0,101410.0,0.30020528]
[1737438783008,0.14469748,101420.0,101410.0,0.70049528]
[1737438783205,0.14469748,101420.0,101410.0,0.74369836]
[1737438783403,0.14469748,101420.0,101410.0,0.84230796]
[1737438783604,0.17384616,101430.0,101420.0,0.039486]
[1737438783804,0.17384616,101430.0,101420.0,0.47509128]
[1737438784203,0.20282052,101440.0,101420.0,0.6485013]
[1737438784407,0.20282052,101440.0,101430.0,0.54989256]
[1737438784716,0.2159041,101450.0,101440.0,0.039478]
[1737438785009,0.67147729,101480.0,101460.0,0.039469]
[1737438785010,0.88243225,101480.0,101460.0,0.039469]
[1737438785213,0.95723753,101480.0,101460.0,0.11427428]
[1737438785401,0.88243225,101480.0,101460.0,0.11427428]
[1737438785602,0.88243225,101480.0,101460.0,0.21285958]
[1737438786506,0.88243225,101480.0,101470.0,0.07480528]
[1737438786706,0.52163225,101480.0,101460.0,0.21285958]
[1737438786903,0.52163225,101480.0,101460.0,0.11427428]
[1737438787105,0.52163225,101480.0,101460.0,0.21282072]
[1737438787423,0.52163225,101480.0,101460.0,1.49282072]
[1737438787623,0.52163225,101480.0,101460.0,1.85362072]
[1737438788023,0.52163225,101480.0,101460.0,1.81415172]
[1737438788223,0.48216925,101480.0,101470.0,0.11427128]
[1737438788420,0.2214,101480.0,101470.0,0.47507128]
[1737438788919,0.2214,101480.0,101470.0,0.57362257]
[1737438789124,0.1078,101490.0,101470.0,0.53415657]
[1737438789326,0.1078,101490.0,101480.0,0.11426728]
[1737438789928,0.1078,101490.0,101480.0,0.21281372]
[1737438790121,0.1078,101490.0,101480.0,0.57361372]
[1737438792024,0.33397897,101500.0,101480.0,0.53415172]
[1737438792218,0.33397897,101500.0,101490.0,0.47506428]
[1737438792825,0.33397897,101500.0,101490.0,1.853601]
[1737438793026,0.1,101500.0,101490.0,1.92840628]
[1737438793228,0.1122,101510.0,101500.0,0.039455]
[1737438793417,0.1122,101510.0,101500.0,0.11426028]
[1737438793824,0.1122,101510.0,101500.0,0.13798202]
[1737438794330,0.1122,101510.0,101490.0,0.400258]
[1737438794331,0.22645628,101510.0,101490.0,0.400258]
[1737438794718,0.151651,101510.0,101490.0,0.57358059]
[1737438795327,0.3608,101500.0,101490.0,0.21278059]
[1737438795525,0.11426028,101500.0,101490.0,0.09851731]
[1737438795725,0.400255,101500.0,101490.0,0.09851731]
[1737438796121,0.039455,101500.0,101490.0,0.09851731]
[1737438796618,0.039455,101500.0,101490.0,0.17332259]
[1737438797233,0.1122,101510.0,101490.0,0.24812787]
[1737438797530,0.1122,101510.0,101500.0,0.11426028]
[1737438797932,0.1122,101510.0,101490.0,0.43560528]
[1737438798136,0.151652,101510.0,101500.0,0.09851731]
[1737438798326,0.512452,101510.0,101500.0,0.09851731]
[1737438798630,0.54780528,101510.0,101480.0,0.44602402]
[1737438798830,0.400256,101500.0,101480.0,1.76548502]
[1737438799132,0.2283,101490.0,101480.0,1.76548502]
[1737438799437,0.2283,101490.0,101480.0,1.86401204]
[1737438799732,0.1119,101490.0,101480.0,1.86401204]
[1737438799935,0.2283,101490.0,101480.0,1.86401204]
[1737438800241,0.5891,101490.0,101480.0,0.09852702]
[1737438800535,0.30310528,101490.0,101470.0,1.85759708]
[1737438800734,0.1164,101480.0,101470.0,1.93240236]
[1737438800925,0.1164,101480.0,101470.0,2.03093908]
[1737438803024,0.1164,101480.0,101470.0,2.04105365]
[1737438803225,0.12939634,101490.0,101480.0,0.039463]
[1737438803423,0.1116,101500.0,101490.0,0.039461]
[1737438803627,0.2227,101500.0,101490.0,0.47506628]
[1737438803824,0.2227,101500.0,101490.0,1.41800744]
[1737438804029,0.5835,101500.0,101490.0,1.41800744]
[1737438804234,0.2227,101500.0,101490.0,1.41800744]
[1737438804619,0.2227,101500.0,101490.0,0.09854644]
[1737438804620,0.5835,101500.0,101490.0,0.09854644]
[1737438804822,0.2227,101500.0,101480.0,0.47506828]
[1737438805225,0.2227,101500.0,101480.0,1.8535953]
[1737438805728,0.5835,101500.0,101480.0,1.8535953]
[1737438806530,0.1128,101490.0,101480.0,1.8535953]
[1737438807121,0.1128,101490.0,101480.0,1.4927953]
[1737438808234,0.1128,101490.0,101480.0,1.319463]
[1737438808735,0.1128,101490.0,101480.0,1.39426828]
[1737438809033,0.1128,101490.0,101480.0,1.319463]
[1737438809233,0.1128,101490.0,101480.0,1.492805]
[1737438809831,0.22706528,101490.0,101480.0,0.09853672]
[1737438810027,0.58786528,101490.0,101470.0,0.01021936]
[1737438810336,0.43569393,101480.0,101460.0,0.00122629]
[1737438810530,0.58807328,101470.0,101450.0,1.86119883]
[1737438811036,0.58807328,101470.0,101450.0,1.95973555]
[1737438811336,0.58807328,101470.0,101460.0,0.53167887]
[1737438811627,0.513268,101470.0,101460.0,0.35567887]
[1737438812032,0.58807328,101470.0,101460.0,0.35567887]
[1737438812333,0.513268,101470.0,101460.0,0.35567887]
[1737438812937,0.58807328,101470.0,101460.0,0.35567887]
[1737438813141,0.58807328,101470.0,101460.0,0.11067886]
[1737438813531,0.70237328,101470.0,101460.0,0.11067886]
[1737438814331,0.71262759,101470.0,101460.0,0.11067886]
[1737438814640,0.63782231,101470.0,101460.0,0.11067886]
[1737438815025,0.71262759,101470.0,101460.0,0.11067886]
[1737438815241,0.71262759,101470.0,101450.0,0.039475]
[1737438815538,0.3608,101460.0,101450.0,0.039475]
[1737438816035,0.3608,101460.0,101450.0,0.21283643]
[1737438816232,0.70237328,101470.0,101460.0,0.039472]
[1737438816432,0.5881,101470.0,101460.0,0.039472]
[1737438816837,0.5881,101470.0,101460.0,1.319472]
[1737438817038,0.5881,101470.0,101460.0,1.41803786]
[1737438818239,0.5881,101470.0,101460.0,0.09856586]
[1737438818538,0.5881,101470.0,101460.0,0.13803786]
[1737438818941,0.2273,101470.0,101460.0,0.13803786]
[1737438819132,0.2273,101470.0,101460.0,1.38803786]
[1737438819338,0.113,101470.0,101460.0,1.46284314]
[1737438819534,0.47618865,101480.0,101470.0,0.039468]
[1737438820039,0.11538865,101480.0,101470.0,0.039468]
[1737438820238,0.11538865,101480.0,101470.0,0.13801444]
[1737438821538,8.865e-05,101480.0,101470.0,0.57361972]
[1737438821738,8.865e-05,101480.0,101470.0,0.68681972]
[1737438823746,8.865e-05,101480.0,101470.0,0.69684331]
[1737438824746,8.865e-05,101480.0,101470.0,1.94684331]
[1737438825740,0.63717359,101510.0,101470.0,2.51662831]
[1737438825741,0.6268317,101510.0,101470.0,2.51662831]
[1737438826051,0.6268317,101510.0,101490.0,0.11426228]
[1737438826242,0.6268317,101510.0,101500.0,0.039456]
[1737438826443,0.5873787,101510.0,101500.0,0.039456]
[1737438826644,0.2265787,101510.0,101500.0,0.13800244]
[1737438826844,0.2265787,101510.0,101500.0,1.38800244]
[1737438827149,0.1119787,101510.0,101500.0,1.38800244]
[1737438827335,0.31757854,101520.0,101510.0,0.039452]
[1737438827535,0.31757854,101520.0,101510.0,0.11425728]
[1737438827740,0.31757854,101520.0,101510.0,0.22095728]
[1737438827944,0.31757854,101520.0,101510.0,0.24466931]
[1737438828145,0.31757854,101520.0,101510.0,0.09851731]
[1737438828349,0.31757854,101520.0,101510.0,0.13796931]
[1737438828935,0.67837854,101520.0,101510.0,0.13796931]
[1737438829148,0.31757854,101520.0,101510.0,0.13796931]
[1737438829545,0.75318382,101520.0,101510.0,0.09851731]
[1737438829849,0.79263382,101520.0,101500.0,1.289455]
[1737438830244,0.79263382,101520.0,101500.0,1.3879626]
[1737438830549,0.3608,101510.0,101500.0,0.1379626]
[1737438830749,0.3608,101510.0,101500.0,0.14827044]
[1737438832452,0.71782854,101520.0,101500.0,0.14827044]
[1737438832647,0.40025,101520.0,101500.0,0.22307572]
[1737438833042,0.40025,101520.0,101500.0,0.14827044]
[1737438833546,0.40025,101520.0,101500.0,0.22307572]
[1737438834446,0.03945,101520.0,101500.0,0.58387572]
[1737438834651,0.40025,101520.0,101500.0,0.22307572]
[1737438835153,0.40025,101520.0,101500.0,0.14827044]
[1737438835850,0.400252,101510.0,101490.0,1.289459]
[1737438836256,0.47505728,101510.0,101490.0,1.38797146]
[1737438836457,0.32,101500.0,101490.0,1.38797146]
[1737438836654,0.79506128,101500.0,101490.0,0.09851246]
[1737438836861,0.79506128,101500.0,101480.0,0.039463]
[1737438837250,0.79506128,101500.0,101480.0,1.289463]
[1737438837957,0.400261,101490.0,101480.0,1.38799002]
[1737438838261,0.400261,101490.0,101470.0,0.5406591]
[1737438838462,0.400261,101490.0,101480.0,0.039463]
[1737438839254,0.400261,101490.0,101480.0,1.269463]
[1737438840663,0.039461,101490.0,101480.0,1.34426828]
[1737438840868,0.039461,101490.0,101480.0,1.269463]
[1737438841566,0.400261,101490.0,101480.0,1.269463]
[1737438841760,0.76568636,101500.0,101480.0,1.269463]
[1737438841960,0.6808,101500.0,101490.0,0.07480528]
[1737438842262,0.6808,101500.0,101490.0,0.039461]
[1737438842463,0.75560528,101500.0,101480.0,1.23]
[1737438842668,0.79506328,101500.0,101490.0,0.039461]
[1737438842969,0.720258,101500.0,101490.0,0.039461]
[1737438843159,0.720258,101500.0,101480.0,0.43560528]
[1737438843359,0.359458,101500.0,101490.0,0.1733323]
[1737438843562,0.720258,101500.0,101480.0,0.07480528]
[1737438843868,0.720258,101500.0,101480.0,0.1733323]
[1737438844269,0.720258,101500.0,101490.0,1.2]
[1737438844662,0.720258,101500.0,101490.0,1.239461]
[1737438845066,0.720258,101500.0,101490.0,1.33799287]
[1737438846363,0.720258,101500.0,101490.0,1.29853187]
[1737438846566,0.79506328,101500.0,101490.0,1.29853187]
[1737438846861,0.720258,101500.0,101490.0,1.29853187]
[1737438847066,0.039461,101490.0,101470.0,0.5801271]
[1737438847368,0.47506628,101490.0,101470.0,0.67865412]
[1737438847565,0.3608,101480.0,101470.0,1.87865412]
[1737438847765,0.3608,101480.0,101470.0,1.9534594]
[1737438847959,0.3608,101480.0,101470.0,1.87865412]
[1737438848165,0.400265,101480.0,101470.0,1.9534594]
[1737438848365,0.400265,101480.0,101470.0,1.87865412]
[1737438849166,0.47507028,101480.0,101460.0,0.29417498]
[1737438849360,0.381169,101470.0,101460.0,0.32871706]
[1737438849566,0.741969,101470.0,101460.0,0.39272142]
[1737438851370,0.741969,101470.0,101460.0,0.4675267]
[1737438851772,0.741969,101470.0,101460.0,0.42726668]
[1737438852272,0.81677428,101470.0,101460.0,0.29417498]
[1737438852775,0.81677428,101470.0,101450.0,1.56454208]
[1737438852776,0.039473,101460.0,101450.0,1.2100895]
[1737438853074,0.400273,101460.0,101450.0,1.30864565]
[1737438853471,0.400273,101460.0,101450.0,1.29855615]
[1737438853472,0.47507828,101460.0,101450.0,1.29855615]
[1737438853675,0.039477,101450.0,101440.0,0.29417498]
[1737438853868,0.47508228,101450.0,101440.0,0.29417498]
[1737438854475,0.400277,101450.0,101440.0,0.29417498]
[1737438856680,0.400277,101450.0,101430.0,1.85471281]
[1737438856681,0.039481,101440.0,101430.0,1.85471281]
[1737438856876,0.400281,101440.0,101430.0,1.85471281]
[1737438857181,0.400281,101440.0,101430.0,1.95328839]
[1737438857672,0.039481,101440.0,101430.0,1.95328839]
[1737438859183,0.3608,101450.0,101440.0,0.039481]
[1737438859378,0.51591888,101460.0,101440.0,0.58088628]
[1737438859687,0.15511888,101460.0,101450.0,1.31428228]
[1737438860481,0.11564488,101460.0,101450.0,1.41284814]
[1737438860682,0.11564488,101460.0,101450.0,1.62514814]
[1737438861069,0.11564488,101460.0,101450.0,1.98594814]
[1737438861773,0.11564488,101460.0,101450.0,1.9960146]
[1737438862376,0.144704,101470.0,101460.0,0.039473]
[1737438862569,0.144704,101470.0,101460.0,0.54988356]
[1737438862974,0.17435337,101480.0,101460.0,1.80897642]
[1737438863280,0.17435337,101480.0,101470.0,0.22617428]
[1737438863882,0.17287454,101480.0,101470.0,0.22617428]
[1737438864084,0.510162,101490.0,101470.0,0.32473043]
[1737438864284,0.510162,101490.0,101480.0,0.07480528]
[1737438864484,0.039465,101480.0,101470.0,0.09855615]
[1737438864685,0.039469,101470.0,101460.0,1.239472]
[1737438864982,0.3608,101480.0,101460.0,0.24736504]
[1737438865188,0.510162,101490.0,101470.0,0.11427228]
[1737438865481,0.510162,101490.0,101480.0,0.039465]
[1737438865482,0.1099,101490.0,101480.0,0.039465]
[1737438865678,0.149362,101490.0,101470.0,1.31427228]
[1737438865880,0.149362,101490.0,101470.0,1.44736593]
[1737438866071,0.510162,101490.0,101470.0,1.34880978]
[1737438866470,0.510162,101490.0,101470.0,1.44735136]
[1737438866685,0.510162,101490.0,101470.0,1.41281386]
[1737438867484,0.3608,101480.0,101470.0,1.41281386]
[1737438867785,0.2068,101500.0,101480.0,0.039464]
[1737438868081,0.1042,101500.0,101490.0,0.11426628]
[1737438868278,0.64477454,101510.0,101500.0,0.039458]
[1737438868579,0.53367454,101510.0,101500.0,0.11426328]
[1737438868977,0.53367454,101510.0,101500.0,0.21279515]
[1737438869579,0.17287454,101510.0,101500.0,0.21279515]
[1737438870775,0.17287454,101510.0,101500.0,1.41279515]
[1737438871484,0.17287454,101510.0,101500.0,0.21279515]
[1737438871675,0.400251,101520.0,101500.0,0.21279515]
[1737438871874,0.400251,101520.0,101510.0,0.07480528]
[1737438872479,0.400251,101520.0,101510.0,0.17331288]
[1737438873185,0.400251,101520.0,101510.0,0.02950759]
[1737438873579,0.400251,101520.0,101490.0,1.5608]
[1737438873580,0.039455,101510.0,101490.0,0.11426628]
[1737438873779,0.613058,101500.0,101480.0,0.11427028]
[1737438874082,0.613058,101500.0,101490.0,0.0985076]
[1737438874281,0.039462,101490.0,101470.0,0.40844826]
[1737438874483,0.400262,101490.0,101470.0,0.40844826]
[1737438874784,0.400262,101490.0,101480.0,0.07480528]
[1737438874978,0.039462,101490.0,101480.0,0.07480528]
[1737438875181,0.400262,101490.0,101480.0,0.30993126]
[1737438876178,0.400262,101490.0,101480.0,0.23512598]
[1737438878186,0.400262,101490.0,101480.0,0.16612597]
[1737438878376,0.400262,101490.0,101470.0,1.32449395]
[1737438878582,0.502765,101480.0,101470.0,1.32449395]
[1737438878782,0.502765,101480.0,101470.0,1.41281]
[1737438880784,0.4633,101480.0,101470.0,1.41281]
[1737438882790,0.1025,101480.0,101470.0,1.41281]
[1737438883193,0.62300537,101500.0,101480.0,0.039464]
[1737438883488,0.72950537,101500.0,101480.0,0.11426928]
[1737438883889,0.3608,101490.0,101480.0,0.21281572]
[1737438885293,0.400261,101490.0,101480.0,0.13801044]
[1737438888393,0.3608,101490.0,101480.0,0.14381571]
[1737438888588,0.6801,101500.0,101490.0,0.039461]
[1737438888892,0.3608,101500.0,101490.0,0.11426628]
[1737438889097,0.3608,101500.0,101490.0,1.31426628]
[1737438889298,0.3608,101510.0,101500.0,0.039458]
[1737438889499,0.38797454,101520.0,101510.0,0.039454]
[1737438889798,0.38797454,101520.0,101510.0,0.11425928]
[1737438889985,0.38797454,101520.0,101510.0,0.2127863]
[1737438890191,0.38797454,101520.0,101510.0,1.4127863]
[1737438891898,0.38797454,101520.0,101510.0,1.44731368]
[1737438892301,0.17287454,101520.0,101510.0,1.4127863]
[1737438893203,0.17287454,101520.0,101510.0,1.3733323]
[1737438893497,0.509247,101530.0,101510.0,1.4127863]
[1737438893703,0.509247,101530.0,101510.0,1.42300924]
[1737438894297,0.509247,101530.0,101510.0,1.38355524]
[1737438894605,0.509247,101530.0,101520.0,0.03945]
[1737438894993,0.109,101530.0,101520.0,0.18906056]
[1737438895188,0.78609447,101540.0,101520.0,0.28756331]
[1737438895395,0.89019447,101540.0,101530.0,0.07480528]
[1737438895594,0.89019447,101540.0,101530.0,1.2]
[1737438895999,0.89019447,101540.0,101530.0,1.2984979]
[1737438896398,0.89019447,101540.0,101530.0,1.37330318]
[1737438896902,0.039446,101530.0,101520.0,0.03945]
[1737438897098,0.85075247,101540.0,101520.0,0.11425528]
[1737438897099,0.89019547,101540.0,101520.0,0.11425528]
[1737438897293,0.89019547,101540.0,101520.0,0.21274348]
[1737438897493,0.89019547,101540.0,101530.0,0.07480528]
[1737438897897,0.89019547,101540.0,101520.0,0.11425528]
[1737438898094,0.89019547,101540.0,101530.0,0.0984979]
[1737438898602,0.89019547,101540.0,101520.0,0.11425528]
[1737438898800,0.89019547,101540.0,101530.0,0.09849305]
[1737438898999,0.71732093,101540.0,101520.0,0.11425528]
[1737438899200,0.71732093,101540.0,101530.0,0.09849305]
[1737438899704,0.71732093,101540.0,101530.0,0.039446]
[1737438899898,0.71732093,101540.0,101530.0,0.1379342]
[1737438900096,0.75268321,101540.0,101520.0,0.039449]
[1737438900299,0.400246,101530.0,101520.0,0.039449]
[1737438900499,0.400246,101530.0,101520.0,0.1379372]
[1737438900699,0.47505128,101530.0,101510.0,0.12448122]
[1737438900902,0.40025,101520.0,101500.0,0.89925323]
[1737438901098,0.721054,101510.0,101500.0,0.29424795]
[1737438901404,0.721054,101510.0,101500.0,0.39273615]
[1737438901603,0.721054,101510.0,101500.0,0.29424795]
[1737438901901,0.3208,101510.0,101500.0,0.50702369]
[1737438902098,0.79585928,101510.0,101500.0,0.29424795]
[1737438902412,0.039458,101500.0,101490.0,0.35445258]
[1737438902605,0.47506328,101500.0,101490.0,0.18445258]
[1737438903311,0.47506328,101500.0,101490.0,0.11545257]
[1737438903905,0.43560528,101500.0,101470.0,1.32463742]
[1737438904105,0.3608,101480.0,101470.0,1.32463742]
[1737438904303,0.3608,101480.0,101470.0,1.42316444]
[1737438904608,0.400265,101480.0,101470.0,1.42316444]
[1737438905811,0.039472,101470.0,101450.0,0.44606541]
[1737438906013,0.400272,101470.0,101450.0,0.4560358]
[1737438906213,0.400272,101470.0,101460.0,1.2]
[1737438906905,0.400272,101470.0,101460.0,1.298561]
[1737438907107,0.57677182,101480.0,101470.0,0.039469]
[1737438907809,0.57677182,101480.0,101470.0,0.13802515]
[1737438908016,0.70319137,101480.0,101470.0,0.13802515]
[1737438908202,0.70319137,101480.0,101470.0,0.06902514]
[1737438908620,0.70319137,101480.0,101470.0,0.10849414]
[1737438912218,0.25543682,101480.0,101470.0,0.10849414]
[1737438912419,0.25543682,101480.0,101470.0,0.06902514]
[1737438912715,0.61623682,101480.0,101470.0,0.06902514]
[1737438913305,0.61623682,101480.0,101470.0,2.513e-05]
[1737438913608,0.61623682,101480.0,101470.0,0.11429941]
[1737438914009,0.61623682,101480.0,101470.0,0.03949413]
[1737438914410,0.61623682,101480.0,101470.0,0.11429941]
[1737438914813,0.25543682,101480.0,101470.0,0.11429941]
[1737438915211,0.61623682,101480.0,101470.0,0.11429941]
[1737438915418,0.61623682,101480.0,101470.0,0.03949413]
[1737438915620,0.61623682,101480.0,101470.0,0.00992357]
[1737438916414,0.61623682,101480.0,101470.0,0.04939257]
[1737438916616,0.61623682,101480.0,101470.0,0.12419785]
[1737438916820,0.61623682,101480.0,101470.0,0.04939257]
[1737438918109,0.61623682,101480.0,101460.0,1.63560528]
[1737438918417,0.61623682,101480.0,101470.0,0.13801544]
[1737438918621,0.61623682,101480.0,101470.0,0.21282072]
[1737438918809,0.61623682,101480.0,101470.0,0.039469]
[1737438919010,0.6515771,101480.0,101470.0,0.09854644]
[1737438919221,0.6910421,101480.0,101470.0,0.09854644]
[1737438919422,0.039469,101470.0,101460.0,1.2296068]
[1737438919625,0.400269,101470.0,101460.0,1.2296068]
[1737438919919,0.400269,101470.0,101460.0,1.32815324]
[1737438920120,0.039469,101470.0,101460.0,1.32815324]
[1737438922421,0.400269,101470.0,101460.0,1.32815324]
[1737438922618,0.400269,101470.0,101460.0,1.28868024]
[1737438924222,0.400269,101470.0,101460.0,1.32815324]
[1737438924625,0.039469,101470.0,101460.0,1.32815324]
[1737438924817,0.400269,101470.0,101460.0,1.32815324]
[1737438925017,0.039469,101470.0,101460.0,1.32815324]
[1737438925925,0.400269,101470.0,101460.0,1.32815324]
[1737438928429,0.039469,101470.0,101460.0,1.40295852]
[1737438928627,0.400269,101470.0,101460.0,1.32815324]
[1737438928924,0.47507428,101470.0,101460.0,1.28868024]
[1737438929123,0.58507428,101470.0,101460.0,0.10868024]
[1737438929321,0.58507428,101470.0,101460.0,0.14322607]
[1737438929322,0.510269,101470.0,101460.0,0.14322607]
[1737438929623,0.149469,101470.0,101460.0,0.14322607]
[1737438930019,0.149469,101470.0,101460.0,0.10868024]
[1737438930218,0.510269,101470.0,101460.0,0.10868024]
[1737438931227,0.60301086,101470.0,101460.0,0.10868024]
[1737438932523,0.20274186,101470.0,101460.0,0.22295852]
[1737438932729,0.20274186,101470.0,101460.0,0.33230822]
[1737438932921,0.20274186,101470.0,101460.0,0.30068114]
[1737438933123,0.20274186,101470.0,101460.0,0.34385658]
[1737438933624,0.10342626,101480.0,101460.0,0.7794586]